bitfinex-derivatives/quotes_SOLF0:USTF0_20250829
["timestamp","ask_amount","ask_price","bid_price","bid_amount"]
[1756477094789,7.53,209.02,208.81,7.67]
[1756477095191,7.53,209.02,208.87,7.67]
[1756477095485,19.88,209.03,208.87,7.67]
[1756477095785,7.53,209.08,208.87,7.67]
[1756477095980,321.88,209.17,208.87,7.67]
[1756477096184,329.41,209.17,208.97,7.67]
[1756477096993,329.41,209.17,209.01,18.78583954]
[1756477097292,329.41,209.17,209.02,7.67]
[1756477097492,7.53,209.17,209.02,7.67]
[1756477099192,155.94,209.23,209.02,7.67]
[1756477099489,7.53,209.22,209.02,7.67]
[1756477099690,155.94,209.23,208.98,29.95463166]
[1756477099892,7.53,209.22,208.99,7.67]
[1756477100089,7.53,209.22,209.06,37.62463166]
[1756477101694,155.74,209.27,209.0,29.95463166]
[1756477101892,170.15,209.27,209.0,29.95463166]
[1756477102090,7.53,209.26,209.0,29.95463166]
[1756477102297,7.53,209.26,208.95,68.2869]
[1756477102298,7.53,209.26,209.06,29.95463166]
[1756477102597,7.53,209.26,209.06,7.67]
[1756477103885,7.53,209.26,209.01,29.95463166]
[1756477104298,14.41,209.26,209.01,29.95463166]
[1756477104596,155.6,209.25,209.01,29.95463166]
[1756477104893,7.53,209.24,209.01,29.95463166]
[1756477105199,7.53,209.24,209.02,7.67]
[1756477105386,7.53,209.24,209.08,7.67]
[1756477106694,321.84,209.3,209.12,29.95463166]
[1756477106994,321.84,209.3,209.12,37.62463166]
[1756477107197,124.0,209.41,208.92,76.41]
[1756477107198,7.53,209.36,209.13,7.67]
[1756477107404,7.53,209.36,209.18,7.67]
[1756477108398,7.53,209.36,209.14,29.95463166]
[1756477108597,21.94,209.39,209.12,7.67]
[1756477108799,7.53,209.35,209.12,7.67]
[1756477109097,7.53,209.35,209.16,7.67]
[1756477110297,42.87,209.35,209.16,7.67]
[1756477110690,70.7,209.37,209.12,7.67]
[1756477110890,7.53,209.36,209.12,7.67]
[1756477111096,7.53,209.36,209.15,7.67]
[1756477111796,7.53,209.36,209.17,4.3024]
[1756477111994,7.53,209.36,209.18,7.67]
[1756477112193,7.53,209.36,209.19,29.95463166]
[1756477112397,7.53,209.43,209.2,7.67]
[1756477112597,7.53,209.43,209.26,7.67]
[1756477113603,155.24,209.51,209.28,7.67]
[1756477113897,7.53,209.5,209.29,29.95463166]
[1756477114297,5.13340319,209.77,209.35,29.95463166]
[1756477114499,29.95463166,209.64,209.36,7.67]
[1756477114703,162.71,209.63,209.36,7.67]
[1756477115799,177.12,209.63,209.36,7.67]
[1756477116196,7.53,209.56,209.29,329.01]
[1756477116498,7.24,209.54,209.29,329.01]
[1756477116694,321.28,209.55,209.29,329.01]
[1756477116907,7.24,209.54,209.29,7.67]
[1756477117508,21.65,209.54,209.29,7.67]
[1756477117803,21.65,209.54,209.3,29.95463166]
[1756477117804,7.24,209.54,209.3,29.95463166]
[1756477118001,21.65,209.56,209.31,7.45]
[1756477118204,7.24,209.56,209.31,7.45]
[1756477118400,7.24,209.56,209.37,7.45]
[1756477121196,162.12,209.56,209.37,7.45]
[1756477121403,162.12,209.56,209.39,18.6637796]
[1756477122001,162.12,209.56,209.37,7.45]
[1756477122703,14.41,209.54,209.28,18.6637796]
[1756477122901,18.6637796,209.56,209.29,7.45]
[1756477122902,33.94,209.53,209.29,7.45]
[1756477123108,7.24,209.53,209.39,7.45]
[1756477123608,7.24,209.53,209.33,26.1137796]
[1756477124306,7.24,209.53,209.34,7.45]
[1756477124805,86.46,209.56,209.39,7.45]
[1756477125009,7.24,209.55,209.39,7.45]
[1756477125404,7.24,209.55,209.41,18.6637796]
[1756477125815,7.24,209.62,209.42,7.45]
[1756477127016,7.24,209.62,209.42,26.1137796]
[1756477127309,7.24,209.62,209.43,7.45]
[1756477127514,7.24,209.62,209.48,7.45]
[1756477128510,7.24,209.62,209.42,26.1137796]
[1756477128907,7.24,209.62,209.42,30.4110796]
[1756477129111,7.24,209.62,209.43,7.45]
[1756477130311,7.24,209.62,209.48,7.45]
[1756477132917,7.24,209.62,209.44,18.6637796]
[1756477133413,7.24,209.62,209.46,4.2965]
[1756477133711,7.24,209.62,209.45,7.45]
[1756477133913,320.88,209.76,209.52,4.2952]
[1756477133914,14.41,209.75,209.52,4.2952]
[1756477134106,7.24,209.7,209.54,18.6637796]
[1756477134309,7.24,209.7,209.55,7.45]
[1756477135610,21.65,209.71,209.48,26.1137796]
[1756477135816,21.65,209.7,209.49,4.41383076]
[1756477136116,33.0737796,209.67,209.42,7.45]
[1756477136322,21.65,209.64,209.42,7.45]
[1756477136619,7.24,209.64,209.46,7.45]
[1756477137115,7.24,209.62,209.4,26.1137796]
[1756477137322,21.65,209.6,209.41,4.42764472]
[1756477137514,21.65,209.6,209.42,4.42764472]
[1756477137719,14.41,209.6,209.34,18.6637796]
[1756477138021,7.24,209.56,209.35,12.01609543]
[1756477138216,20.82,209.55,209.37,7.45]
[1756477138421,20.82,209.55,209.38,4.56609543]
[1756477138716,20.82,209.55,209.39,4.56609543]
[1756477139019,20.82,209.55,209.41,7.45]
[1756477139221,20.82,209.55,209.42,4.56609543]
[1756477139416,20.82,209.55,209.43,4.56609543]
[1756477139622,7.24,209.67,209.43,7.45]
[1756477139816,7.24,209.67,209.48,7.45]
[1756477140017,7.24,209.67,209.52,18.6637796]
[1756477140219,7.24,209.67,209.53,4.58171626]
[1756477140515,5.82,209.72,209.48,7.45]
[1756477140516,7.24,209.65,209.48,7.45]
[1756477140719,7.24,209.65,209.49,4.58867818]
[1756477140913,7.24,209.65,209.5,4.58867818]
[1756477141113,7.24,209.65,209.54,4.2949]
[1756477141319,131.79808481,209.84,209.54,4.2949]
[1756477141320,7.24,209.74,209.55,4.42399465]
[1756477141515,7.24,209.74,209.58,4.2941]
[1756477141714,7.24,209.74,209.59,4.42399465]
[1756477141920,7.24,209.74,209.51,25.4]
[1756477141921,7.24,209.74,209.6,11.87399465]
[1756477142123,7.24,209.74,209.61,4.42399465]
[1756477142317,7.24,209.74,209.62,4.42399465]
[1756477142519,7.24,209.74,209.63,4.42399465]
[1756477142724,7.24,209.74,209.48,23.5]
[1756477142725,7.24,209.74,209.64,4.42399465]
[1756477142912,7.24,209.74,209.61,7.45]
[1756477142913,7.24,209.74,209.65,4.42399465]
[1756477143114,7.24,209.74,209.61,7.45]
[1756477143115,7.24,209.74,209.62,4.41837728]
[1756477143321,7.24,209.81,209.67,4.2922]
[1756477143521,7.24,209.81,209.68,4.41837728]
[1756477143718,7.24,209.81,209.69,4.41837728]
[1756477143923,21.65,209.81,209.67,4.41837728]
[1756477144217,21.65,209.79,209.61,4.42017924]
[1756477144418,21.65,209.79,209.62,4.42017924]
[1756477144617,21.65,209.79,209.6,7.45]
[1756477144817,154.0,209.8,209.61,4.40568221]
[1756477144818,14.41,209.77,209.61,4.40568221]
[1756477145017,21.65,209.76,209.62,4.40568221]
[1756477145222,21.65,209.76,209.55,4.40568221]
[1756477145424,18.6637796,209.63,209.56,4.40568221]
[1756477145621,145.11,209.62,209.42,7.45]
[1756477145822,21.65,209.62,209.43,4.40568221]
[1756477146128,7.24,209.62,209.44,4.40568221]
[1756477146325,7.24,209.62,209.42,7.45]
[1756477146326,7.24,209.62,209.46,7.45]
[1756477146529,320.72,209.67,209.49,7.45]
[1756477146733,320.72,209.67,209.5,4.40568221]
[1756477146926,320.72,209.67,209.51,4.40568221]
[1756477147135,7.67,209.66,209.52,4.40568221]
[1756477147322,18.6637796,209.77,209.54,7.37]
[1756477147628,320.72,209.81,209.59,7.37]
[1756477147629,9.98567708,209.76,209.59,7.37]
[1756477147826,7.67,209.76,209.6,4.40568221]
[1756477148025,7.67,209.76,209.61,4.40568221]
[1756477148226,320.72,209.81,209.63,7.37]
[1756477148429,320.72,209.81,209.65,7.37]
[1756477148628,320.72,209.81,209.66,4.40568221]
[1756477148823,7.67,209.9,209.7,4.2915]
[1756477149034,7.67,209.9,209.69,7.37]
[1756477149035,161.51,209.9,209.71,4.40568221]
[1756477149230,7.67,209.88,209.72,4.40568221]
[1756477149434,7.67,209.83,209.63,7.37]
[1756477149736,2.31847452,209.82,209.64,4.41598629]
[1756477150038,7.67,209.78,209.65,4.41598629]
[1756477150233,7.67,209.78,209.57,7.37]
[1756477150234,7.67,209.78,209.66,4.41598629]
[1756477150435,7.67,209.78,209.67,4.41598629]
[1756477150631,7.67,209.78,209.68,4.41598629]
[1756477150831,55.73,209.84,209.69,4.41598629]
[1756477151031,7.67,209.78,209.57,7.37]
[1756477151227,2.32256355,209.77,209.58,4.42026163]
[1756477151434,7.67,209.78,209.6,7.37]
[1756477151638,7.67,209.78,209.61,4.42026163]
[1756477151937,474.4,209.83,209.64,18.6637796]
[1756477152132,320.66,209.83,209.65,8.71286163]
[1756477152336,320.66,209.83,209.66,4.42026163]
[1756477152534,320.66,209.83,209.67,4.42026163]
[1756477152832,7.67,209.82,209.68,4.42026163]
[1756477153034,22.08,209.82,209.69,4.42026163]
[1756477153231,18.6637796,209.75,209.55,7.37]
[1756477153433,161.35,209.74,209.56,4.42670596]
[1756477153639,7.67,209.72,209.55,7.37]
[1756477153942,7.67,209.69,209.49,7.37]
[1756477154140,2.32262888,209.68,209.49,7.37]
[1756477154342,7.67,209.69,209.49,7.37]
[1756477154543,2.32468133,209.68,209.49,7.37]
[1756477154742,7.67,209.69,209.49,7.37]
[1756477154952,2.32460998,209.68,209.49,7.37]
[1756477155144,9.99460998,209.67,209.49,7.37]
[1756477155444,7.67,209.67,209.49,7.37]
[1756477155646,22.08,209.65,209.43,7.37]
[1756477155849,2.32775365,209.64,209.43,7.37]
[1756477156149,7.67,209.62,209.43,7.37]
[1756477156346,2.32565482,209.61,209.43,7.37]
[1756477156846,7.67,209.62,209.43,18.6637796]
[1756477157150,153.58,209.65,209.44,7.37]
[1756477157351,2.33030361,209.64,209.45,7.37]
[1756477157541,153.58,209.65,209.45,7.37]
[1756477157739,153.58,209.65,209.49,7.37]
[1756477157946,153.58,209.65,209.49,26.0337796]
[1756477158144,320.62,209.67,209.49,26.0337796]
[1756477158443,7.67,209.68,209.5,7.37]
[1756477158848,7.67,209.68,209.56,4.2944]
[1756477159045,153.54,209.74,209.55,7.37]
[1756477159348,7.67,209.75,209.62,4.2932]
[1756477159547,7.67,209.75,209.6,7.37]
[1756477159749,2.32850619,209.74,209.55,7.37]
[1756477159949,7.67,209.69,209.48,7.37]
[1756477160152,7.67,209.67,209.48,7.37]
[1756477160441,2.32850619,209.66,209.48,7.37]
[1756477160647,7.67,209.67,209.48,7.37]
[1756477160847,7.67,209.67,209.49,7.37]
[1756477161043,2.32789934,209.66,209.49,7.37]
[1756477161250,7.67,209.67,209.49,7.37]
[1756477161440,7.67,209.65,209.49,7.37]
[1756477161640,2.32909216,209.64,209.49,7.37]
[1756477162049,2.32909216,209.64,209.44,4.2969]
[1756477162545,7.67,209.63,209.44,4.2969]
[1756477162752,7.67,209.61,209.43,7.37]
[1756477163054,2.32909216,209.6,209.43,7.37]
[1756477163746,2.32909216,209.6,209.43,11.6671]
[1756477164546,2.32909216,209.6,209.43,7.37]
[1756477164952,7.67,209.59,209.43,7.37]
[1756477165154,2.32909216,209.58,209.38,26.0337796]
[1756477165349,2.32909216,209.57,209.38,7.37]
[1756477165648,9.99909216,209.56,209.38,7.37]
[1756477165849,2.32909216,209.55,209.38,7.37]
[1756477166053,2.32909216,209.54,209.38,7.37]
[1756477166253,2.32909216,209.53,209.38,7.37]
[1756477166556,9.99444415,209.52,209.38,7.37]
[1756477166753,2.32444415,209.51,209.38,7.37]
[1756477166945,7.67,209.52,209.38,7.37]
[1756477167145,2.32387425,209.51,209.3,7.37]
[1756477167348,7.67,209.49,209.3,7.37]
[1756477167548,7.67,209.49,209.31,18.6637796]
[1756477167748,17.8,209.56,209.37,7.37]
[1756477167957,2.32232647,209.55,209.37,7.37]
[1756477168159,17.8,209.56,209.37,7.37]
[1756477168646,7.67,209.58,209.41,4.2975]
[1756477168858,26.3337796,209.56,209.37,7.37]
[1756477169055,26.3337796,209.56,209.31,3.95584213]
[1756477169056,7.67,209.54,209.31,7.37]
[1756477169254,2.32258026,209.53,209.31,7.37]
[1756477169456,2.32258026,209.52,209.31,7.37]
[1756477169657,7.67,209.54,209.36,4.2986]
[1756477169850,2.32239317,209.53,209.35,7.37]
[1756477170050,160.91,209.6,209.41,7.37]
[1756477170258,2.32376506,209.59,209.4,18.6637796]
[1756477170454,7.67,209.66,209.5,18.6637796]
[1756477170653,18.6637796,209.73,209.51,7.37]
[1756477170852,7.67,209.71,209.51,7.37]
[1756477171053,20.98884409,209.72,209.51,7.37]
[1756477171054,7.67,209.69,209.51,7.37]
[1756477171260,7.67,209.67,209.51,7.37]
[1756477172056,7.67,209.67,209.51,11.6655]
[1756477172255,7.67,209.67,209.51,7.37]
[1756477174262,18.6637796,209.73,209.54,7.37]
[1756477174263,7.67,209.73,209.54,7.37]
[1756477174560,7.67,209.73,209.58,4.294]
[1756477175156,7.67,209.73,209.58,11.664]
[1756477175358,7.67,209.73,209.58,7.37]
[1756477175563,7.67,209.71,209.51,7.37]
[1756477175763,7.67,209.69,209.51,7.37]
[1756477175964,2.32175038,209.68,209.51,7.37]
[1756477176158,7.67,209.69,209.51,7.37]
[1756477176659,14.41,209.66,209.46,7.08]
[1756477176860,7.39,209.64,209.46,7.08]
[1756477177056,5.13340319,209.76,209.46,7.08]
[1756477177057,89.76,209.7,209.5,7.08]
[1756477177356,2.32117436,209.69,209.5,7.08]
[1756477177556,21.8,209.7,209.5,7.08]
[1756477177861,2.32103847,209.69,209.5,7.08]
[1756477178058,7.39,209.7,209.5,7.08]
[1756477178362,7.39,209.68,209.5,7.08]
[1756477178763,2.32194781,209.67,209.5,7.08]
[1756477178964,21.8,209.68,209.5,7.08]
[1756477179363,7.39,209.68,209.5,11.3756]
[1756477179563,7.39,209.68,209.5,7.08]
[1756477179755,7.39,209.74,209.5,7.08]
[1756477180063,7.39,209.72,209.51,7.08]
[1756477180259,2.32308999,209.71,209.51,7.08]
[1756477180562,7.39,209.72,209.52,4.2952]
[1756477180765,2.31914548,209.71,209.51,7.08]
[1756477180964,7.39,209.72,209.51,7.08]
[1756477181164,2.31925257,209.71,209.51,7.08]
[1756477181467,7.39,209.72,209.55,7.08]
[1756477181757,7.39,209.72,209.55,11.3747]
[1756477181962,7.39,209.72,209.55,7.08]
[1756477182554,2.31937817,209.71,209.55,7.08]
[1756477182765,7.39,209.72,209.55,7.08]
[1756477183060,16.72931493,209.71,209.55,7.08]
[1756477183256,7.39,209.72,209.55,7.08]
[1756477184161,2.31955928,209.71,209.55,7.08]
[1756477184362,7.39,209.8,209.6,7.08]
[1756477184557,2.32222988,209.79,209.6,7.08]
[1756477184760,2.32222988,209.78,209.6,7.08]
[1756477184959,7.39,209.8,209.6,7.08]
[1756477185164,2.32298317,209.79,209.62,4.2932]
[1756477185365,7.39,209.75,209.6,7.08]
[1756477185564,21.8,209.75,209.6,7.08]
[1756477185760,2.32028901,209.74,209.6,7.08]
[1756477185958,21.8,209.75,209.6,7.08]
[1756477186158,7.39,209.73,209.6,7.08]
[1756477186362,7.39,209.73,209.55,7.08]
[1756477186567,21.8,209.73,209.55,7.08]
[1756477189869,7.39,209.73,209.55,7.08]
[1756477190071,73.62,209.76,209.59,18.6637796]
[1756477190271,73.62,209.76,209.61,3.95584213]
[1756477190473,7.39,209.79,209.62,7.08]
[1756477191270,152.54,209.85,209.64,18.6637796]
[1756477191469,159.93,209.85,209.65,7.08]
[1756477191668,159.93,209.85,209.66,7.08]
[1756477191969,7.39,209.85,209.66,7.08]
[1756477192568,21.8,209.85,209.66,7.08]
[1756477193073,9.70722321,209.84,209.66,7.08]
[1756477193370,7.39,209.84,209.66,7.08]
[1756477193969,21.8,209.84,209.66,7.08]
[1756477194171,7.39,209.78,209.59,7.08]
[1756477194370,21.8,209.76,209.59,7.08]
[1756477194764,7.39,209.74,209.59,7.08]
[1756477197173,327.97,209.79,209.6,7.08]
[1756477197372,327.97,209.79,209.61,7.08]
[1756477197578,327.97,209.79,209.63,7.08]
[1756477197773,152.34,209.82,209.66,7.08]
[1756477198073,7.39,209.84,209.69,7.08]
[1756477198471,7.39,209.91,209.72,7.08]
[1756477198678,7.39,209.91,209.76,7.08]
[1756477199473,7.39,209.97,209.76,7.08]
[1756477199680,14.41,209.98,209.76,7.08]
[1756477199681,2.31389779,209.96,209.76,7.08]
[1756477199875,21.8,209.95,209.76,7.08]
[1756477200072,7.39,209.95,209.76,7.08]
[1756477201677,21.8,209.95,209.76,7.08]
[1756477202674,36.44,209.94,209.76,7.08]
[1756477202870,7.39,209.95,209.76,7.08]
[1756477203473,7.39,210.02,209.84,18.6637796]
[1756477203679,7.39,210.02,209.85,7.08]
[1756477204378,54.64,210.03,209.85,7.08]
[1756477204577,320.58,210.06,209.87,4.2879]
[1756477204881,320.58,210.06,209.88,7.08]
[1756477205082,7.39,210.05,209.88,7.08]
[1756477207275,18.6637796,210.13,209.88,7.08]
[1756477207276,5.13340319,210.26,209.88,7.08]
[1756477207484,2.29461403,210.25,210.02,7.45]
[1756477207681,7.44,210.26,210.07,7.45]
[1756477207889,7.44,210.26,210.11,18.6637796]
[1756477208083,7.44,210.26,210.12,7.45]
[1756477208785,7.44,210.33,210.15,7.45]
[1756477209778,7.44,210.32,210.15,18.6637796]
[1756477209985,7.44,210.32,210.16,7.45]
[1756477210886,7.44,210.41,210.21,7.45]
[1756477211092,26.1037796,210.41,210.21,7.45]
[1756477211382,26.1037796,210.41,210.15,18.6637796]
[1756477211383,21.85,210.35,210.11,7.45]
[1756477211584,7.44,210.3,210.11,7.45]
[1756477211792,111.5,210.29,210.05,338.9837796]
[1756477211986,18.6637796,210.26,210.04,7.45]
[1756477212292,7.44,210.25,210.0,18.6637796]
[1756477212491,7.44,210.2,209.98,7.45]
[1756477212888,31.8,210.19,209.98,7.45]
[1756477213084,31.8,210.19,209.98,26.1137796]
[1756477213485,7.44,210.18,209.98,7.45]
[1756477213794,7.44,210.15,209.93,18.6637796]
[1756477214191,7.44,210.15,209.94,7.45]
[1756477214589,26.1037796,210.15,209.94,7.45]
[1756477214793,26.1037796,210.15,209.88,18.6637796]
[1756477214985,7.44,210.09,209.88,7.45]
[1756477215292,7.44,210.04,209.85,18.6637796]
[1756477215493,5.13340319,210.37,209.96,7.45]
[1756477215697,7.44,210.23,209.96,7.45]
[1756477215895,7.44,210.21,209.96,7.45]
[1756477216188,7.44,210.21,209.96,26.1137796]
[1756477216394,18.6637796,210.19,209.97,7.45]
[1756477216589,7.44,210.18,209.97,7.45]
[1756477216990,18.6637796,210.13,209.97,7.45]
[1756477217192,7.44,210.12,209.97,7.45]
[1756477218093,7.44,210.2,209.97,11.7359]
[1756477218298,7.44,210.2,209.98,7.45]
[1756477219097,7.44,210.26,210.01,7.45]
[1756477219296,7.44,210.26,210.03,7.45]
[1756477220295,7.44,210.26,210.06,7.45]
[1756477221991,652.0,210.4,209.99,471.44]
[1756477221992,37.13785747,210.52,210.17,7.45]
[1756477222191,7.44,210.51,210.19,7.45]
[1756477222389,7.44,210.51,210.24,7.45]
[1756477222802,9.52,210.54,210.24,36.51]
[1756477223002,7.44,210.53,210.24,7.45]
[1756477223800,7.44,210.52,210.24,37.61]
[1756477224001,21.85,210.52,210.24,7.45]
[1756477224200,51.54785747,210.52,210.24,7.45]
[1756477224697,14.41,210.5,210.24,7.45]
[1756477224901,14.41,210.46,210.19,29.69785747]
[1756477225105,7.44,210.43,210.19,29.69785747]
[1756477225400,7.44,210.43,210.2,7.45]
[1756477225597,7.44,210.43,210.26,7.45]
[1756477225998,11.26,210.46,210.26,7.45]
[1756477226501,7.44,210.45,210.26,7.45]
[1756477226797,49.1,210.56,210.26,7.45]
[1756477227005,7.44,210.55,210.28,7.45]
[1756477227395,7.44,210.55,210.32,7.45]
[1756477228298,7.44,210.55,210.32,59.17]
[1756477228497,7.44,210.55,210.32,7.45]
[1756477230099,7.44,210.63,210.38,7.45]
[1756477230600,29.69785747,210.59,210.38,7.45]
[1756477230799,56.29,210.58,210.38,7.45]
[1756477230994,48.85,210.58,210.31,37.14785747]
[1756477231191,7.44,210.57,210.31,37.14785747]
[1756477231603,7.44,210.57,210.32,7.45]
[1756477231903,21.85,210.57,210.32,7.45]
[1756477232398,7.44,210.57,210.32,7.45]
[1756477232593,21.85,210.57,210.32,7.45]
[1756477232799,7.44,210.54,210.32,7.45]
[1756477233292,14.41,210.53,210.26,327.13]
[1756477233500,21.85,210.49,210.26,7.45]
[1756477233696,21.85,210.49,210.19,29.69785747]
[1756477233901,21.85,210.46,210.18,7.45]
[1756477234105,7.44,210.44,210.18,7.45]
[1756477234302,7.44,210.44,210.21,7.45]
[1756477235502,7.44,210.42,210.21,7.45]
[1756477235902,21.85,210.42,210.21,7.45]
[1756477236102,7.44,210.42,210.21,29.69785747]
[1756477236303,7.44,210.42,210.22,7.45]
[1756477238203,7.44,210.42,210.23,7.36]
[1756477238406,150.68,210.41,210.23,7.36]
[1756477238608,7.44,210.42,210.23,7.36]
[1756477238804,150.68,210.41,210.23,7.36]
[1756477239005,319.58,210.45,210.27,29.69785747]
[1756477239209,7.11,210.46,210.28,7.36]
[1756477239509,7.11,210.46,210.27,29.69785747]
[1756477239510,21.52,210.44,210.22,7.36]
[1756477239806,7.11,210.44,210.22,7.36]
[1756477240006,19.96,210.43,210.22,7.36]
[1756477240221,35.5,210.42,210.22,7.36]
[1756477240408,7.11,210.36,210.03,7.36]
[1756477240610,14.41,210.3,210.03,7.36]
[1756477240805,319.56,210.35,210.03,7.36]
[1756477240806,21.52,210.26,210.03,7.36]
[1756477241008,14.41,210.18,209.92,18.51698772]
[1756477241211,21.52,210.15,209.93,7.36]
[1756477241409,7.11,210.11,209.93,7.36]
[1756477241614,150.6,210.1,209.93,7.36]
[1756477241807,7.11,210.11,209.93,7.36]
[1756477242012,18.51698772,210.07,209.93,7.36]
[1756477242512,7.11,210.06,209.85,7.36]
[1756477243220,24.26,210.11,209.87,7.36]
[1756477243517,29.69803325,210.16,209.87,7.36]
[1756477243710,29.69803325,210.16,209.89,7.36]
[1756477243909,150.6,210.15,209.89,7.36]
[1756477244107,29.69803325,210.16,209.89,7.36]
[1756477244410,150.6,210.15,209.9,4.2873]
[1756477244611,150.6,210.14,209.92,7.36]
[1756477244811,124.0,210.32,209.98,29.69803325]
[1756477245013,7.11,210.29,209.99,7.36]
[1756477245412,7.11,210.24,209.99,7.36]
[1756477245911,14.41,210.23,209.99,7.36]
[1756477246112,78.34,210.31,209.99,7.36]
[1756477246113,21.52,210.21,209.99,7.36]
[1756477246314,21.52,210.18,209.93,5.72]
[1756477246617,7.11,210.15,209.93,5.72]
[1756477247118,41.64,210.14,209.93,5.72]
[1756477247312,7.11,210.15,209.94,7.36]
[1756477247518,7.11,210.15,209.97,7.36]
[1756477247810,7.11,210.21,209.97,11.6458]
[1756477248010,12.63,210.21,209.97,11.6458]
[1756477248210,7.11,210.21,209.97,7.36]
[1756477248417,7.11,210.21,210.05,7.36]
[1756477249208,150.56,210.27,210.05,7.36]
[1756477249410,7.11,210.29,210.08,7.36]
[1756477249620,7.11,210.29,210.08,11.6435]
[1756477249913,150.56,210.28,210.08,7.36]
[1756477250119,7.11,210.27,210.08,7.36]
[1756477250320,150.54,210.26,210.08,7.36]
[1756477250517,157.65,210.27,210.08,7.36]
[1756477250820,7.11,210.27,210.1,4.2831]
[1756477251016,7.11,210.27,210.08,7.36]
[1756477251421,7.11,210.27,210.14,4.2823]
[1756477251816,7.11,210.4,210.2,7.36]
[1756477252016,7.11,210.6,210.28,7.36]
[1756477252318,21.52,210.56,210.28,7.36]
[1756477252522,7.11,210.54,210.28,37.05803325]
[1756477252716,7.11,210.54,210.29,7.36]
[1756477253718,7.11,210.54,210.39,11.6373]
[1756477253919,7.11,210.54,210.39,7.36]
[1756477254519,7.11,210.54,210.33,37.05803325]
[1756477254721,7.11,210.54,210.36,4.2777]
[1756477255232,7.11,210.54,210.38,4.2775]
[1756477255422,7.11,210.54,210.33,7.36]
[1756477256123,7.11,210.54,210.36,7.36]
[1756477256326,7.11,210.54,210.43,4.2763]
[1756477256623,7.11,210.54,210.36,7.36]
[1756477257020,7.11,210.54,210.41,4.2768]
[1756477257320,7.11,210.54,210.36,7.36]
[1756477257730,7.11,210.54,210.4,4.277]
[1756477260019,7.11,210.54,210.36,7.36]
[1756477260220,14.41,210.55,210.29,26.38]
[1756477260524,7.11,210.53,210.37,4.2776]
[1756477260722,7.11,210.53,210.35,7.36]
[1756477261026,150.28,210.54,210.28,37.05803325]
[1756477261221,7.11,210.52,210.28,37.05803325]
[1756477261427,14.41,210.5,210.28,7.36]
[1756477261723,7.11,210.49,210.28,4.2794]